[Event "*** Titled Tuesday Blitz"]
[Site "Chess.com"]
[Date "2020.04.07"]
[Round "6"]
[White "DerSchachaffe"]
[Black "Bad4life"]
[Result "0-1"]
[WhiteElo "2457"]
[BlackElo "2329"]
[TimeControl "180+1"]
[EndTime "14:08:17 PDT"]
[Termination "Bad4life won on time"]

1. e4 {[%clk 0:03:00.7]} 1... c5 {[%clk 0:02:57.8]} 2. Nf3 {[%clk 0:03:00.4]}
2... g6 {[%clk 0:02:58]} 3. d4 {[%clk 0:02:59.3]} 3... cxd4 {[%clk 0:02:58.9]}
4. c3 {[%clk 0:02:59.6]} 4... d3 {[%clk 0:02:54.8]} 5. Bxd3 {[%clk 0:02:57.7]}
5... Bg7 {[%clk 0:02:55.3]} 6. c4 {[%clk 0:02:56.6]} 6... Nc6 {[%clk 0:02:55.9]}
7. O-O {[%clk 0:02:56.2]} 7... Nf6 {[%clk 0:02:54.5]} 8. Nc3 {[%clk 0:02:55]}
8... O-O {[%clk 0:02:54.7]} 9. Bg5 {[%clk 0:02:53.8]} 9... h6 {[%clk 0:02:53.3]}
10. Be3 {[%clk 0:02:52.1]} 10... d6 {[%clk 0:02:51.8]} 11. h3 {[%clk 0:02:51.6]}
11... Kh7 {[%clk 0:02:49.4]} 12. Rc1 {[%clk 0:02:47.9]} 12... Nd7 {[%clk
0:02:47.9]} 13. Qd2 {[%clk 0:02:43.6]} 13... b6 {[%clk 0:02:42.8]} 14. Rfd1
{[%clk 0:02:36.4]} 14... Bb7 {[%clk 0:02:42.2]} 15. Nd5 {[%clk 0:02:36.5]} 15...
e6 {[%clk 0:02:34.8]} 16. Nf4 {[%clk 0:02:33.3]} 16... Nc5 {[%clk 0:02:19]} 17.
Bb1 {[%clk 0:02:32.5]} 17... Ne5 {[%clk 0:02:12.4]} 18. Nxe5 {[%clk 0:01:57.4]}
18... dxe5 {[%clk 0:02:03.1]} 19. Bxc5 {[%clk 0:01:55.7]} 19... bxc5 {[%clk
0:01:46.9]} 20. Qxd8 {[%clk 0:01:51.4]} 20... Raxd8 {[%clk 0:01:45.2]} 21. Ne2
{[%clk 0:01:45.5]} 21... f5 {[%clk 0:01:37.9]} 22. Rxd8 {[%clk 0:01:24.4]} 22...
Rxd8 {[%clk 0:01:37.3]} 23. Nc3 {[%clk 0:01:06]} 23... Rd2 {[%clk 0:01:28.1]}
24. b3 {[%clk 0:00:53.1]} 24... Bf6 {[%clk 0:01:14.4]} 25. Rd1 {[%clk
0:00:48.4]} 25... Rd4 {[%clk 0:01:05.3]} 26. Re1 {[%clk 0:00:42.7]} 26... Bc6
{[%clk 0:00:34.2]} 27. f3 {[%clk 0:00:19.2]} 27... Bh4 {[%clk 0:00:27.2]} 28.
Re2 {[%clk 0:00:18.6]} 28... Bd8 {[%clk 0:00:22.3]} 29. Kf2 {[%clk 0:00:03.6]}
29... Ba5 {[%clk 0:00:21.7]} 30. Rc2 {[%clk 0:00:04.2]} 30... Kg7 {[%clk
0:00:20.5]} 31. Ke2 {[%clk 0:00:03.9]} 31... Kf6 {[%clk 0:00:20.5]} 32. Nd1
{[%clk 0:00:04.1]} 32... fxe4 {[%clk 0:00:18.7]} 33. Rb2 {[%clk 0:00:04.1]}
33... exf3+ {[%clk 0:00:15.8]} 34. gxf3 {[%clk 0:00:05]} 34... e4 {[%clk
0:00:15.7]} 35. Nf2 {[%clk 0:00:04.3]} 35... exf3+ {[%clk 0:00:15.6]} 36. Ke3
{[%clk 0:00:04.6]} 36... Bc3 {[%clk 0:00:14.9]} 37. Rc2 {[%clk 0:00:04.4]} 37...
Ba5 {[%clk 0:00:11.4]} 38. a3 {[%clk 0:00:03.2]} 38... Bc7 {[%clk 0:00:10.6]}
39. Nd3 {[%clk 0:00:01.4]} 39... Bd6 {[%clk 0:00:07.2]} 40. b4 {[%clk
0:00:01.3]} 40... Ba4 {[%clk 0:00:02.8]} 0-1

[Event "*** Titled Tuesday Blitz"]
[Site "Chess.com"]
[Date "2020.04.07"]
[Round "6"]
[White "dmosesov"]
[Black "bangchess21"]
[Result "1/2-1/2"]
[WhiteElo "2497"]
[BlackElo "2642"]
[TimeControl "180+1"]
[EndTime "14:08:19 PDT"]
[Termination "Game drawn by repetition"]

1. d4 {[%clk 0:03:00]} 1... Nf6 {[%clk 0:03:00.1]} 2. c4 {[%clk 0:03:00.2]} 2...
e6 {[%clk 0:03:00.4]} 3. Nf3 {[%clk 0:03:00.6]} 3... Bb4+ {[%clk 0:03:00.5]} 4.
Bd2 {[%clk 0:03:00.4]} 4... a5 {[%clk 0:03:00.2]} 5. Qc2 {[%clk 0:02:55.3]} 5...
d6 {[%clk 0:02:55.2]} 6. e4 {[%clk 0:02:47.9]} 6... e5 {[%clk 0:02:46.5]} 7. d5
{[%clk 0:02:41.9]} 7... Bc5 {[%clk 0:02:43.6]} 8. Be2 {[%clk 0:02:35.9]} 8...
Bg4 {[%clk 0:02:35.4]} 9. h3 {[%clk 0:02:32.5]} 9... Bh5 {[%clk 0:02:33.1]} 10.
Nc3 {[%clk 0:02:28.4]} 10... Nbd7 {[%clk 0:02:30.6]} 11. a3 {[%clk 0:02:23.3]}
11... h6 {[%clk 0:02:26.1]} 12. Rb1 {[%clk 0:02:22.8]} 12... Bxf3 {[%clk
0:02:26.3]} 13. Bxf3 {[%clk 0:02:21.6]} 13... Bd4 {[%clk 0:02:26.5]} 14. Ne2
{[%clk 0:02:21.8]} 14... Bb6 {[%clk 0:02:16.2]} 15. b4 {[%clk 0:02:19.6]} 15...
c6 {[%clk 0:02:12.4]} 16. O-O {[%clk 0:02:11.1]} 16... axb4 {[%clk 0:02:07.8]}
17. axb4 {[%clk 0:02:09.6]} 17... O-O {[%clk 0:02:07]} 18. Ng3 {[%clk
0:02:00.4]} 18... Bd4 {[%clk 0:02:00.2]} 19. Nf5 {[%clk 0:01:58.3]} 19... cxd5
{[%clk 0:01:54.2]} 20. cxd5 {[%clk 0:01:46.6]} 20... Qb6 {[%clk 0:01:50.9]} 21.
Bxh6 {[%clk 0:01:25.7]} 21... gxh6 {[%clk 0:01:09.4]} 22. Qd2 {[%clk 0:01:25.5]}
22... Ne8 {[%clk 0:01:09.1]} 23. Qxh6 {[%clk 0:00:57.1]} 23... Qd8 {[%clk
0:01:09]} 24. Bg4 {[%clk 0:00:38.3]} 24... Qf6 {[%clk 0:00:42.3]} 25. Qd2 {[%clk
0:00:38]} 25... Nb6 {[%clk 0:00:36.7]} 26. Rb3 {[%clk 0:00:35.1]} 26... Ng7
{[%clk 0:00:21.2]} 27. Rg3 {[%clk 0:00:29]} 27... Nc4 {[%clk 0:00:20.7]} 28. Qe2
{[%clk 0:00:25.2]} 28... Nb6 {[%clk 0:00:16.3]} 29. Bh5 {[%clk 0:00:24.5]} 29...
Rfc8 {[%clk 0:00:08.5]} 30. Rxg7+ {[%clk 0:00:23.7]} 30... Qxg7 {[%clk
0:00:09.4]} 31. Nxg7 {[%clk 0:00:24.6]} 31... Kxg7 {[%clk 0:00:10.3]} 32. Qg4+
{[%clk 0:00:25.2]} 32... Kf8 {[%clk 0:00:10.5]} 33. Qf5 {[%clk 0:00:25.3]} 33...
Rc7 {[%clk 0:00:10.9]} 34. Kh1 {[%clk 0:00:25.8]} 34... Nc4 {[%clk 0:00:11.2]}
35. Qg5 {[%clk 0:00:24]} 35... b5 {[%clk 0:00:08.2]} 36. f4 {[%clk 0:00:23.5]}
36... Ne3 {[%clk 0:00:07.8]} 37. Qh6+ {[%clk 0:00:17.6]} 37... Ke7 {[%clk
0:00:07.6]} 38. fxe5 {[%clk 0:00:16.2]} 38... Nxf1 {[%clk 0:00:04.4]} 39. exd6+
{[%clk 0:00:15.9]} 39... Ke8 {[%clk 0:00:04.5]} 40. dxc7 {[%clk 0:00:13.3]}
40... Ng3+ {[%clk 0:00:04.6]} 41. Kh2 {[%clk 0:00:13.5]} 41... Nf1+ {[%clk
0:00:05.1]} 42. Kh1 {[%clk 0:00:13.3]} 42... Ng3+ {[%clk 0:00:05.4]} 43. Kh2
{[%clk 0:00:13.1]} 43... Nf1+ {[%clk 0:00:06]} 44. Kh1 {[%clk 0:00:14]} 1/2-1/2

[Event "*** Titled Tuesday Blitz"]
[Site "Chess.com"]
[Date "2020.04.07"]
[Round "6"]
[White "Zaven_ChessMood"]
[Black "LyonBeast"]
[Result "1-0"]
[WhiteElo "2886"]
[BlackElo "2983"]
[TimeControl "180+1"]
[EndTime "14:08:21 PDT"]
[Termination "Zaven_ChessMood won by resignation"]

1. e4 {[%clk 0:03:00.9]} 1... e5 {[%clk 0:02:59.9]} 2. Nf3 {[%clk 0:03:00.3]}
2... Nc6 {[%clk 0:03:00.5]} 3. Bc4 {[%clk 0:03:00.4]} 3... Bc5 {[%clk
0:03:00.3]} 4. d3 {[%clk 0:02:59.8]} 4... Nf6 {[%clk 0:02:58.8]} 5. O-O {[%clk
0:02:55.9]} 5... O-O {[%clk 0:02:58]} 6. Nbd2 {[%clk 0:02:53.8]} 6... d6 {[%clk
0:02:52.5]} 7. h3 {[%clk 0:02:52.8]} 7... a5 {[%clk 0:02:48.9]} 8. c3 {[%clk
0:02:52.1]} 8... Be6 {[%clk 0:02:47]} 9. Re1 {[%clk 0:02:46.5]} 9... Bxc4 {[%clk
0:02:30.1]} 10. Nxc4 {[%clk 0:02:45.7]} 10... Re8 {[%clk 0:02:28.9]} 11. Be3
{[%clk 0:02:42.6]} 11... b5 {[%clk 0:02:24.6]} 12. Ncd2 {[%clk 0:02:39]} 12...
Bxe3 {[%clk 0:02:24.6]} 13. Rxe3 {[%clk 0:02:37.1]} 13... a4 {[%clk 0:02:23.9]}
14. a3 {[%clk 0:02:33.9]} 14... Ne7 {[%clk 0:02:23.9]} 15. d4 {[%clk 0:02:30.3]}
15... Ng6 {[%clk 0:02:23.2]} 16. Qc2 {[%clk 0:02:24.8]} 16... c6 {[%clk
0:02:14.9]} 17. Rae1 {[%clk 0:02:13.6]} 17... Qb6 {[%clk 0:02:13.4]} 18. Nf1
{[%clk 0:02:08.4]} 18... Rad8 {[%clk 0:02:09.1]} 19. Ng3 {[%clk 0:02:05.1]}
19... Nf4 {[%clk 0:02:08.1]} 20. Ne2 {[%clk 0:02:00.2]} 20... Ne6 {[%clk
0:01:58.5]} 21. dxe5 {[%clk 0:01:54.1]} 21... dxe5 {[%clk 0:01:59.4]} 22. Nxe5
{[%clk 0:01:54.7]} 22... Nc5 {[%clk 0:01:37.2]} 23. Ng4 {[%clk 0:01:54.7]} 23...
Nfxe4 {[%clk 0:01:19.9]} 24. Ng3 {[%clk 0:01:51]} 24... Nd6 {[%clk 0:01:19.7]}
25. Rxe8+ {[%clk 0:01:47.9]} 25... Rxe8 {[%clk 0:01:20.6]} 26. Rxe8+ {[%clk
0:01:44.7]} 26... Nxe8 {[%clk 0:01:21.5]} 27. Nf5 {[%clk 0:01:41.4]} 27... Qd8
{[%clk 0:01:20.6]} 28. Qe2 {[%clk 0:01:35.7]} 28... Ne6 {[%clk 0:00:37.8]} 29.
Qe5 {[%clk 0:01:29.4]} 29... h5 {[%clk 0:00:36.2]} 30. Nge3 {[%clk 0:01:26.8]}
30... Kh7 {[%clk 0:00:30.8]} 31. Qe4 {[%clk 0:01:25.5]} 31... g6 {[%clk
0:00:29.4]} 32. Nd4 {[%clk 0:01:24.5]} 32... Nxd4 {[%clk 0:00:29.5]} 33. cxd4
{[%clk 0:01:23.5]} 33... Qd7 {[%clk 0:00:25.3]} 34. g4 {[%clk 0:01:12.7]} 34...
hxg4 {[%clk 0:00:24.9]} 35. hxg4 {[%clk 0:01:11.1]} 35... Nc7 {[%clk 0:00:20.5]}
36. Qe5 {[%clk 0:01:07.8]} 36... Ne6 {[%clk 0:00:20]} 37. d5 {[%clk 0:01:05.5]}
37... Nd8 {[%clk 0:00:16.2]} 38. dxc6 {[%clk 0:01:02.5]} 38... Nxc6 {[%clk
0:00:17.1]} 39. Qxb5 {[%clk 0:01:01.3]} 39... Qe6 {[%clk 0:00:16.4]} 40. Qxa4
{[%clk 0:00:56.6]} 40... Ne5 {[%clk 0:00:16.6]} 41. Qe4 {[%clk 0:00:54.8]} 41...
Qd6 {[%clk 0:00:16.4]} 42. Kg2 {[%clk 0:00:54.4]} 42... Nd3 {[%clk 0:00:16.3]}
43. b4 {[%clk 0:00:46.7]} 43... Nf4+ {[%clk 0:00:16.5]} 44. Kf3 {[%clk
0:00:44.8]} 44... Ne6 {[%clk 0:00:17.1]} 45. Qd5 {[%clk 0:00:41.2]} 45... Qa6
{[%clk 0:00:17.1]} 46. b5 {[%clk 0:00:33.5]} 46... Qxa3 {[%clk 0:00:13.9]} 47.
b6 {[%clk 0:00:33.5]} 47... Qb4 {[%clk 0:00:10.4]} 48. b7 {[%clk 0:00:33.8]}
48... Qb6 {[%clk 0:00:10]} 49. Qd7 {[%clk 0:00:27.6]} 49... Nd8 {[%clk
0:00:09.5]} 50. Nd5 {[%clk 0:00:24.5]} 50... Qb3+ {[%clk 0:00:09.6]} 51. Kg2
{[%clk 0:00:24.2]} 51... Qc4 {[%clk 0:00:06.9]} 52. Nf6+ {[%clk 0:00:22.2]} 1-0

[Event "*** Titled Tuesday Blitz"]
[Site "Chess.com"]
[Date "2020.04.07"]
[Round "6"]
[White "TST2014"]
[Black "Oleg_Papayan"]
[Result "0-1"]
[WhiteElo "2504"]
[BlackElo "2348"]
[TimeControl "180+1"]
[EndTime "14:08:21 PDT"]
[Termination "Oleg_Papayan won on time"]

1. d4 {[%clk 0:03:00.9]} 1... Nf6 {[%clk 0:02:59.2]} 2. c4 {[%clk 0:03:00.7]}
2... e6 {[%clk 0:02:59.4]} 3. Nf3 {[%clk 0:03:00.3]} 3... b6 {[%clk 0:02:54.3]}
4. a3 {[%clk 0:02:59.7]} 4... Bb7 {[%clk 0:02:52.8]} 5. Nc3 {[%clk 0:02:59.1]}
5... d5 {[%clk 0:02:53.2]} 6. cxd5 {[%clk 0:02:57.9]} 6... exd5 {[%clk
0:02:52.5]} 7. Bf4 {[%clk 0:02:56.9]} 7... Bd6 {[%clk 0:02:51.1]} 8. Bxd6 {[%clk
0:02:54.4]} 8... Qxd6 {[%clk 0:02:50.8]} 9. g3 {[%clk 0:02:54.6]} 9... O-O
{[%clk 0:02:50.2]} 10. Bg2 {[%clk 0:02:54.1]} 10... c5 {[%clk 0:02:45.3]} 11.
O-O {[%clk 0:02:52.7]} 11... Nbd7 {[%clk 0:02:39.6]} 12. Rc1 {[%clk 0:02:39.3]}
12... Rfe8 {[%clk 0:02:27.8]} 13. e3 {[%clk 0:02:37.5]} 13... a6 {[%clk
0:02:19.9]} 14. Qd3 {[%clk 0:02:29.3]} 14... c4 {[%clk 0:02:19.4]} 15. Qf5
{[%clk 0:02:29.1]} 15... b5 {[%clk 0:02:18]} 16. Qf4 {[%clk 0:02:22]} 16... Qe7
{[%clk 0:02:13.6]} 17. Rfe1 {[%clk 0:02:12]} 17... Bc6 {[%clk 0:02:10.3]} 18.
Nh4 {[%clk 0:01:49.3]} 18... g6 {[%clk 0:02:00.5]} 19. Nf3 {[%clk 0:01:47.2]}
19... a5 {[%clk 0:01:54.8]} 20. Red1 {[%clk 0:01:33.1]} 20... b4 {[%clk
0:01:52.3]} 21. axb4 {[%clk 0:01:32.7]} 21... axb4 {[%clk 0:01:53.2]} 22. Ne2
{[%clk 0:01:20.7]} 22... Ra2 {[%clk 0:01:50.8]} 23. Qc7 {[%clk 0:01:14.2]} 23...
Rxb2 {[%clk 0:01:37.1]} 24. Nf4 {[%clk 0:01:12.7]} 24... Ba4 {[%clk 0:01:35.8]}
25. Re1 {[%clk 0:01:09]} 25... Bc2 {[%clk 0:01:20.7]} 26. Ra1 {[%clk 0:00:42.9]}
26... Be4 {[%clk 0:01:14.7]} 27. Ra7 {[%clk 0:00:30.5]} 27... c3 {[%clk
0:00:48.5]} 28. Ne5 {[%clk 0:00:29.7]} 28... Nxe5 {[%clk 0:00:25.3]} 29. Qxe7
{[%clk 0:00:24.1]} 29... Rxe7 {[%clk 0:00:25.8]} 30. Rxe7 {[%clk 0:00:24.6]}
30... Nf3+ {[%clk 0:00:26.2]} 31. Bxf3 {[%clk 0:00:24.1]} 31... Bxf3 {[%clk
0:00:27.1]} 32. Nd3 {[%clk 0:00:24]} 32... Rd2 {[%clk 0:00:17.5]} 33. Nxb4
{[%clk 0:00:22.9]} 33... Ne4 {[%clk 0:00:18]} 34. Rf1 {[%clk 0:00:20]} 34... c2
{[%clk 0:00:12]} 35. Rc7 {[%clk 0:00:18.4]} 35... Bd1 {[%clk 0:00:12.2]} 36.
Nxd5 {[%clk 0:00:14.7]} 36... Be2 {[%clk 0:00:10.4]} 37. Nb4 {[%clk 0:00:02.9]}
37... Bxf1 {[%clk 0:00:09.1]} 38. Kxf1 {[%clk 0:00:03.1]} 38... Rd1+ {[%clk
0:00:09.3]} 39. Kg2 {[%clk 0:00:03.5]} 39... c1=Q {[%clk 0:00:09.5]} 40. Rxc1
{[%clk 0:00:04.1]} 40... Rxc1 {[%clk 0:00:10.2]} 41. Nd3 {[%clk 0:00:04.4]}
41... Rc2 {[%clk 0:00:10]} 42. Kf3 {[%clk 0:00:03.9]} 42... f5 {[%clk
0:00:09.7]} 43. h4 {[%clk 0:00:03.4]} 43... Rd2 {[%clk 0:00:09.8]} 0-1

[Event "*** Titled Tuesday Blitz"]
[Site "Chess.com"]
[Date "2020.04.07"]
[Round "6"]
[White "IMRosen"]
[Black "Nathan_Filgueiras"]
[Result "1-0"]
[WhiteElo "2465"]
[BlackElo "2303"]
[TimeControl "180+1"]
[EndTime "14:08:21 PDT"]
[Termination "IMRosen won by resignation"]

1. e4 {[%clk 0:03:00.9]} 1... c5 {[%clk 0:02:59.7]} 2. Nc3 {[%clk 0:03:00.1]}
2... Nc6 {[%clk 0:02:59.8]} 3. Bb5 {[%clk 0:02:57]} 3... d6 {[%clk 0:02:57.7]}
4. Bxc6+ {[%clk 0:02:56.1]} 4... bxc6 {[%clk 0:02:57]} 5. f4 {[%clk 0:02:56.6]}
5... f5 {[%clk 0:02:53.3]} 6. Nf3 {[%clk 0:02:55.4]} 6... Nf6 {[%clk 0:02:51.3]}
7. Qe2 {[%clk 0:02:51.4]} 7... g6 {[%clk 0:02:35.2]} 8. e5 {[%clk 0:02:39.3]}
8... Nd5 {[%clk 0:02:32.8]} 9. d3 {[%clk 0:02:07.1]} 9... Bg7 {[%clk 0:02:17.3]}
10. O-O {[%clk 0:02:07]} 10... O-O {[%clk 0:02:15.9]} 11. Bd2 {[%clk 0:02:07.6]}
11... Rb8 {[%clk 0:02:13.1]} 12. b3 {[%clk 0:02:07]} 12... e6 {[%clk 0:02:05.5]}
13. Na4 {[%clk 0:01:59.5]} 13... Re8 {[%clk 0:01:49.4]} 14. Rae1 {[%clk
0:01:58.2]} 14... Nb4 {[%clk 0:01:27.5]} 15. c3 {[%clk 0:01:46.8]} 15... Nd5
{[%clk 0:01:22]} 16. c4 {[%clk 0:01:45.2]} 16... Nb4 {[%clk 0:01:20.7]} 17. Bc3
{[%clk 0:01:44.3]} 17... dxe5 {[%clk 0:00:55.5]} 18. Bxe5 {[%clk 0:01:35.5]}
18... Bxe5 {[%clk 0:00:44.2]} 19. Nxe5 {[%clk 0:01:35.7]} 19... Qd4+ {[%clk
0:00:42.1]} 20. Qf2 {[%clk 0:01:27.7]} 20... Bb7 {[%clk 0:00:34.6]} 21. Nxc5
{[%clk 0:01:21.5]} 21... Qxf2+ {[%clk 0:00:24.7]} 22. Rxf2 {[%clk 0:01:21.9]}
22... Bc8 {[%clk 0:00:19.4]} 23. d4 {[%clk 0:01:02.7]} 23... a5 {[%clk
0:00:16.3]} 24. Re3 {[%clk 0:00:59.8]} 24... a4 {[%clk 0:00:15.2]} 25. Nxa4
{[%clk 0:00:56.7]} 25... Ra8 {[%clk 0:00:15.2]} 26. a3 {[%clk 0:00:54.4]} 26...
Na6 {[%clk 0:00:12.6]} 27. Nb6 {[%clk 0:00:44.3]} 27... Rb8 {[%clk 0:00:11.7]}
28. c5 {[%clk 0:00:44.9]} 28... Nc7 {[%clk 0:00:09.2]} 29. Ned7 {[%clk
0:00:41.9]} 29... Bxd7 {[%clk 0:00:08.2]} 30. Nxd7 {[%clk 0:00:42.8]} 30... Kf7
{[%clk 0:00:07.2]} 31. Ne5+ {[%clk 0:00:39.9]} 31... Kg7 {[%clk 0:00:06.7]} 32.
Nxc6 {[%clk 0:00:39.9]} 32... Ra8 {[%clk 0:00:06.9]} 33. b4 {[%clk 0:00:39.7]}
33... Nd5 {[%clk 0:00:06.3]} 34. Rb3 {[%clk 0:00:39.9]} 34... Rec8 {[%clk
0:00:06.2]} 35. Ne5 {[%clk 0:00:40.2]} 35... Rcb8 {[%clk 0:00:06]} 36. g3 {[%clk
0:00:40.7]} 36... Ra4 {[%clk 0:00:05.7]} 37. Rfb2 {[%clk 0:00:40.5]} 37... Rba8
{[%clk 0:00:06.1]} 38. b5 {[%clk 0:00:39.6]} 38... Rxa3 {[%clk 0:00:06.4]} 39.
Rxa3 {[%clk 0:00:40.5]} 39... Rxa3 {[%clk 0:00:07.2]} 40. b6 {[%clk 0:00:41.2]}
40... Ra8 {[%clk 0:00:07.4]} 41. c6 {[%clk 0:00:40.7]} 41... Rc8 {[%clk
0:00:06.6]} 42. b7 {[%clk 0:00:39.9]} 42... Rb8 {[%clk 0:00:06.6]} 43. Ra2
{[%clk 0:00:40.5]} 43... Nb4 {[%clk 0:00:02.2]} 44. Ra8 {[%clk 0:00:40.1]} 44...
Nxc6 {[%clk 0:00:03.1]} 45. Nxc6 {[%clk 0:00:39.8]} 45... Rxb7 {[%clk
0:00:03.7]} 46. Ra7 {[%clk 0:00:40.5]} 46... Rxa7 {[%clk 0:00:03.6]} 47. Nxa7
{[%clk 0:00:41.4]} 47... Kf6 {[%clk 0:00:03.9]} 48. Nc6 {[%clk 0:00:41.9]} 48...
h6 {[%clk 0:00:03.5]} 49. Ne5 {[%clk 0:00:42.5]} 49... g5 {[%clk 0:00:04.4]} 50.
Kf2 {[%clk 0:00:43.2]} 50... Ke7 {[%clk 0:00:04.1]} 51. Kf3 {[%clk 0:00:42]}
51... Kd6 {[%clk 0:00:05]} 52. fxg5 {[%clk 0:00:42.6]} 52... hxg5 {[%clk
0:00:05.9]} 53. h4 {[%clk 0:00:43.3]} 53... Kd5 {[%clk 0:00:06.8]} 54. hxg5
{[%clk 0:00:42.4]} 54... Kxd4 {[%clk 0:00:07.7]} 55. g6 {[%clk 0:00:41.5]} 55...
Kxe5 {[%clk 0:00:08.6]} 56. g7 {[%clk 0:00:42.1]} 1-0

[Event "*** Titled Tuesday Blitz"]
[Site "Chess.com"]
[Date "2020.04.07"]
[Round "6"]
[White "Kaua18"]
[Black "twitchTriniCupid"]
[Result "1-0"]
[WhiteElo "2189"]
[BlackElo "2388"]
[TimeControl "180+1"]
[EndTime "14:08:21 PDT"]
[Termination "Kaua18 won by checkmate"]

1. e4 {[%clk 0:03:00.9]} 1... c6 {[%clk 0:02:59.2]} 2. d4 {[%clk 0:02:59.9]}
2... d5 {[%clk 0:03:00.1]} 3. Nc3 {[%clk 0:03:00.3]} 3... dxe4 {[%clk
0:03:00.2]} 4. Nxe4 {[%clk 0:03:01.2]} 4... Bf5 {[%clk 0:03:00.3]} 5. Ng3 {[%clk
0:03:01.2]} 5... Bg6 {[%clk 0:03:00.9]} 6. Bc4 {[%clk 0:03:01.1]} 6... e6 {[%clk
0:03:01]} 7. N1e2 {[%clk 0:03:01.6]} 7... Bd6 {[%clk 0:03:00.6]} 8. O-O {[%clk
0:03:01.9]} 8... Qc7 {[%clk 0:03:00]} 9. f4 {[%clk 0:03:02.2]} 9... Nf6 {[%clk
0:02:57.9]} 10. f5 {[%clk 0:03:02.1]} 10... exf5 {[%clk 0:02:57.7]} 11. Nxf5
{[%clk 0:03:03]} 11... Bxh2+ {[%clk 0:02:39.2]} 12. Kh1 {[%clk 0:03:02.5]} 12...
O-O {[%clk 0:02:38.9]} 13. Bh6 {[%clk 0:02:36]} 13... Nh5 {[%clk 0:02:00.5]} 14.
g4 {[%clk 0:01:37.9]} 14... gxh6 {[%clk 0:01:39.4]} 15. gxh5 {[%clk 0:01:20.5]}
15... Bxf5 {[%clk 0:00:24.2]} 16. Rxf5 {[%clk 0:01:21.4]} 16... Nd7 {[%clk
0:00:20.7]} 17. Qf1 {[%clk 0:01:21]} 17... Nb6 {[%clk 0:00:15.2]} 18. Bb3 {[%clk
0:00:38.4]} 18... Kh8 {[%clk 0:00:13.9]} 19. Rxf7 {[%clk 0:00:28.6]} 19... Rxf7
{[%clk 0:00:13.7]} 20. Bxf7 {[%clk 0:00:28.9]} 20... Qd6 {[%clk 0:00:11.2]} 21.
Qg2 {[%clk 0:00:22.3]} 21... Rf8 {[%clk 0:00:10.6]} 22. Rf1 {[%clk 0:00:20.5]}
22... Nd7 {[%clk 0:00:08.2]} 23. Qxh2 {[%clk 0:00:19.7]} 23... Qe7 {[%clk
0:00:06.5]} 24. Qf2 {[%clk 0:00:14.6]} 24... Kg7 {[%clk 0:00:06.5]} 25. Ng3
{[%clk 0:00:12.3]} 25... Qh4+ {[%clk 0:00:03.1]} 26. Kg2 {[%clk 0:00:11.9]}
26... Qg5 {[%clk 0:00:02.9]} 27. Qf5 {[%clk 0:00:10.1]} 27... Nf6 {[%clk
0:00:03.2]} 28. Qxg5+ {[%clk 0:00:09.9]} 28... hxg5 {[%clk 0:00:04.1]} 29. Bb3
{[%clk 0:00:10.4]} 29... h6 {[%clk 0:00:03.9]} 30. Re1 {[%clk 0:00:09.4]} 30...
Kh7 {[%clk 0:00:04.6]} 31. Re7+ {[%clk 0:00:09.1]} 31... Kh8 {[%clk 0:00:05.5]}
32. Rxb7 {[%clk 0:00:08]} 32... Ng4 {[%clk 0:00:06.2]} 33. Rxa7 {[%clk
0:00:07.8]} 33... Ne3+ {[%clk 0:00:06.6]} 34. Kg1 {[%clk 0:00:07.6]} 34... g4
{[%clk 0:00:06.7]} 35. c3 {[%clk 0:00:07.5]} 35... Nd5 {[%clk 0:00:06.3]} 36.
Bxd5 {[%clk 0:00:06.1]} 36... cxd5 {[%clk 0:00:07.2]} 37. Rd7 {[%clk 0:00:06.4]}
37... Rf3 {[%clk 0:00:06.9]} 38. Kg2 {[%clk 0:00:06.4]} 38... Rd3 {[%clk
0:00:07.1]} 39. Rxd5 {[%clk 0:00:04.6]} 39... Rd2+ {[%clk 0:00:07.8]} 40. Kg1
{[%clk 0:00:05]} 40... Rxb2 {[%clk 0:00:08.7]} 41. Rd7 {[%clk 0:00:04.9]} 41...
Rc2 {[%clk 0:00:07.8]} 42. Ne4 {[%clk 0:00:05]} 42... Re2 {[%clk 0:00:07.2]} 43.
Nf6 {[%clk 0:00:04.9]} 43... Re1+ {[%clk 0:00:02.8]} 44. Kf2 {[%clk 0:00:04.5]}
44... Re6 {[%clk 0:00:03.4]} 45. Rh7# {[%clk 0:00:03.9]} 1-0